fUSD/lending_fUSD_20240428
["ID","MTS","AMOUNT","RATE_DAILY","PERIOD"]
[32133,1714331438425,-533.0,0.00010958,2]
[32135,1714331438443,-500.0,0.00010958,2]
[32137,1714331438461,-500.0,0.00010958,2]
[32139,1714331438481,-649.51,0.00010958,2]
[32140,1714331438490,-500.0,0.00010958,2]
[32141,1714331438499,-500.0,0.00010958,2]
[32142,1714331438508,-500.0,0.00010958,2]
[32143,1714331438517,-899.28,0.00010958,2]
[32145,1714331438527,-500.0,0.00010958,2]
[32146,1714331438535,-500.0,0.00010958,2]
[32147,1714331438544,-517.0429451,0.00010958,2]
[32149,1714331438562,-1142.31,0.00010958,2]
[32151,1714331438580,-500.0,0.00010958,2]
[32153,1714331438598,-500.0,0.00010958,2]
[32155,1714331438616,-606.2,0.00010958,2]
[32157,1714331438635,-500.0,0.00010958,2]
[32159,1714331438653,-500.0,0.00010958,2]
[32161,1714331438670,-500.0,0.00010958,2]
[32163,1714331438689,-500.0,0.00010958,2]
[32165,1714331438707,-618.36,0.00010958,2]
[32167,1714331438725,-500.0,0.00010958,2]
[32169,1714331438743,-500.0,0.00010958,2]
[32171,1714331438762,-629.85,0.00010958,2]
[32173,1714331438780,-500.0,0.00010958,2]
[32175,1714331438798,-500.0,0.00010958,2]
[32177,1714331438817,-500.0,0.00010958,2]
[32179,1714331438835,-816.26,0.00010958,2]
[32181,1714331438855,-500.0,0.00010958,2]
[32183,1714331438874,-891.97,0.00010958,2]
[32185,1714331438892,-500.0,0.00010958,2]
[32187,1714331438913,-500.0,0.00010958,2]
[32189,1714331438931,-500.0,0.00010958,2]
[32191,1714331438950,-668.56,0.00010958,2]
[32193,1714331438970,-788.51,0.00010958,2]
[32195,1714331438989,-500.0,0.00010958,2]
[32197,1714331439010,-500.0,0.00010958,2]
[32198,1714331439019,-1397.03,0.00010958,2]
[32199,1714331439030,-500.0,0.00010958,2]
[32201,1714331439051,-500.0,0.00010958,2]
[32203,1714331439073,-500.0,0.00010958,2]
[32205,1714331439093,-500.0,0.00010958,2]
[32207,1714331439112,-500.0,0.00010958,2]
[32209,1714331439132,-500.0,0.00010958,2]
[32211,1714331439151,-500.0,0.00010958,2]
[32213,1714331439170,-643.86,0.00010958,2]
[32215,1714331439190,-500.0,0.00010958,2]
[32217,1714331439199,-500.0,0.00010958,2]
[32219,1714331439209,-666.45,0.00010958,2]
[32221,1714331439219,-500.0,0.00010958,2]
[32223,1714331439230,-500.0,0.00010958,2]
[32225,1714331439239,-500.0,0.00010958,2]
[32227,1714331439249,-500.0,0.00010958,2]
[32229,1714331439260,-500.0,0.00010958,2]
[32234,1714331439279,-500.0,0.00010958,2]
[32235,1714331439289,-500.03704044,0.00010958,2]
[32237,1714331439298,-500.0,0.00010958,2]
[32239,1714331439308,-513.55,0.00010958,2]
[32241,1714331439318,-500.0,0.00010958,2]
[32243,1714331439327,-1577.52,0.00010958,2]
[32245,1714331439341,-500.0,0.00010958,2]
[32246,1714331439351,-500.0,0.00010958,2]
[32247,1714331439361,-500.0,0.00010958,2]
[32249,1714331439382,-500.0,0.00010958,2]
[32250,1714331439392,-500.0,0.00010958,2]
[32251,1714331439401,-500.0,0.00010958,2]
[32253,1714331439427,-500.0,0.00010958,2]
[32255,1714331439448,-500.0,0.00010958,2]
[32257,1714331439468,-728.71,0.00010958,2]
[32259,1714331439487,-500.0,0.00010958,2]
[32261,1714331439496,-504.2611077,0.00010958,2]
[32263,1714331439505,-500.0,0.00010958,2]
[32265,1714331439515,-500.0,0.00010958,2]
[32267,1714331439524,-500.0,0.00010958,2]
[32269,1714331439534,-500.0,0.00010958,2]
[32271,1714331439543,-803.65,0.00010958,2]
[32273,1714331439552,-180.1701142,0.00010958,2]
[32275,1714331439562,-500.0,0.00010958,2]
[32277,1714331439571,-500.0,0.00010958,2]
[32279,1714331439580,-615.66,0.00010958,2]
[32281,1714331439590,-500.0,0.00010958,2]
[32283,1714331439599,-500.0,0.00010958,2]
[32285,1714331439608,-500.0,0.00010958,2]
[32287,1714331439618,-500.0,0.00010958,2]
[32289,1714331439627,-500.0,0.00010958,2]
[32291,1714331439637,-500.0,0.00010958,2]
[32293,1714331439646,-575.03,0.00010958,2]
[32295,1714331439655,-500.0,0.00010958,2]
[32297,1714331439674,-500.0,0.00010958,2]
[32299,1714331439692,-538.42,0.00010958,2]
[32301,1714331439711,-772.95,0.00010958,2]
[32302,1714331439721,-500.0,0.00010958,2]
[32303,1714331439732,-500.0,0.00010958,2]
[32305,1714331439750,-815.56,0.00010958,2]
[32307,1714331439768,-513.25,0.00010958,2]
[32308,1714331439778,-500.0,0.00010958,2]
[32309,1714331439789,-500.0,0.00010958,2]
[32310,1714331439798,-920.36,0.00010958,2]
[32311,1714331439807,-500.0,0.00010958,2]
[32313,1714331439826,-500.0,0.00010958,2]
[32315,1714331440044,-592.76,0.00010958,2]
[32317,1714331440092,-623.57,0.00010958,2]
[32319,1714331440111,-652.17,0.00010958,2]
[32321,1714331440130,-585.78,0.00010958,2]
[32323,1714331440149,-500.0,0.00010958,2]
[32325,1714331440168,-500.0,0.00010958,2]
[32327,1714331440187,-500.0,0.00010958,2]
[32329,1714331440206,-535.83,0.00010958,2]
[32331,1714331440225,-500.0,0.00010958,2]
[32333,1714331440246,-500.0,0.00010958,2]
[32335,1714331440265,-500.0,0.00010958,2]
[32337,1714331440284,-500.0,0.00010958,2]
[32339,1714331440303,-500.0,0.00010958,2]
[32341,1714331440322,-608.78,0.00010958,2]
[32343,1714331440346,-500.0,0.00010958,2]
[32345,1714331440364,-500.0,0.00010958,2]
[32347,1714331440385,-500.0,0.00010958,2]
[32349,1714331440394,-500.0,0.00010958,2]
[32351,1714331440414,-500.0,0.00010958,2]
[32353,1714331440433,-710.87,0.00010958,2]
[32355,1714331440454,-500.0,0.00010958,2]
[32357,1714331440476,-500.0,0.00010958,2]
[32359,1714331440495,-500.0,0.00010958,2]
[32361,1714331440516,-500.0,0.00010958,2]
[32363,1714331440534,-500.0,0.00010958,2]
[32365,1714331440554,-810.35,0.00010958,2]
[32367,1714331440574,-725.07,0.00010958,2]
[32369,1714331440592,-625.09,0.00010958,2]
[32371,1714331440611,-500.0,0.00010958,2]
[32373,1714331440630,-544.86,0.00010958,2]
[32375,1714331440649,-726.49,0.00010958,2]
[32377,1714331440668,-500.0,0.00010958,2]
[32379,1714331440687,-641.55116941,0.00010958,2]
[32381,1714331440706,-500.0,0.00010958,2]
[32383,1714331440724,-704.75,0.00010958,2]
[32385,1714331440745,-500.0,0.00010958,2]
[32387,1714331440764,-500.0,0.00010958,2]
[32389,1714331440783,-500.0,0.00010958,2]
[32391,1714331440801,-502.92420587,0.00010958,2]
[32393,1714331440820,-698.54,0.00010958,2]
[32395,1714331440839,-500.0,0.00010958,2]
[32397,1714331440857,-500.0,0.00010958,2]
[32399,1714331440876,-500.0,0.00010958,2]
[32401,1714331440895,-775.6,0.00010958,2]
[32403,1714331440914,-500.0,0.00010958,2]
[32405,1714331440933,-500.0,0.00010958,2]
[32407,1714331440951,-500.0,0.00010958,2]
[32409,1714331440969,-890.23,0.00010958,2]
[32411,1714331440988,-1031.24,0.00010958,2]
[32413,1714331441007,-500.0,0.00010958,2]
[32415,1714331441026,-500.0,0.00010958,2]
[32417,1714331441044,-500.0,0.00010958,2]
[32419,1714331441063,-500.0,0.00010958,2]
[32421,1714331441082,-500.0,0.00010958,2]
[32423,1714331441102,-500.0,0.00010958,2]
[32424,1714331441112,-500.0,0.00010958,2]
[32425,1714331441122,-500.0,0.00010958,2]
[32426,1714331441132,-500.0,0.00010958,2]
[32427,1714331441141,-807.65,0.00010958,2]
[32429,1714331441160,-721.68,0.00010958,2]
[32430,1714331441170,-500.0,0.00010958,2]
[32431,1714331441179,-500.0,0.00010958,2]
[32432,1714331441189,-500.0,0.00010958,2]
[32433,1714331441199,-590.60271077,0.00010958,2]
[32434,1714331441209,-500.0,0.00010958,2]
[32435,1714331441219,-500.0,0.00010958,2]
[32437,1714331441239,-500.0,0.00010958,2]
[32439,1714331441259,-500.0,0.00010958,2]
[32441,1714331441279,-635.7256997,0.00010958,2]
[32443,1714331441299,-500.0,0.00010958,2]
[32445,1714331441318,-500.0,0.00010958,2]
[32447,1714331441345,-500.0,0.00010958,2]
[32449,1714331441365,-500.0,0.00010958,2]
[32451,1714331441385,-500.0,0.00010958,2]
[32453,1714331441407,-500.0,0.00010958,2]
[32455,1714331441428,-500.0,0.00010958,2]
[32457,1714331441452,-500.0,0.00010958,2]
[32459,1714331441473,-500.0,0.00010958,2]
[32461,1714331441492,-588.44,0.00010958,2]
[32462,1714331441501,-500.0,0.00010958,2]
[32463,1714331441512,-500.0,0.00010958,2]
[32464,1714331441522,-500.0,0.00010958,2]
[32465,1714331441532,-500.0,0.00010958,2]
[32466,1714331441542,-500.0,0.00010958,2]
[32467,1714331441551,-500.0,0.00010958,2]
[32469,1714331441572,-998.15,0.00010958,2]
[32471,1714331441592,-500.0,0.00010958,2]
[32473,1714331441615,-500.0,0.00010958,2]
[32475,1714331441634,-500.0,0.00010958,2]
[32477,1714331441654,-627.25,0.00010958,2]
[32479,1714331441673,-500.0,0.00010958,2]
[32480,1714331441683,-573.36,0.00010958,2]
[32481,1714331441692,-888.38,0.00010958,2]
[32483,1714331441712,-500.0,0.00010958,2]
[32485,1714331441734,-500.0,0.00010958,2]
[32487,1714331441754,-500.0,0.00010958,2]
[32489,1714331441777,-500.0,0.00010958,2]
[32490,1714331441786,-596.12,0.00010958,2]
[32491,1714331441796,-500.0,0.00010958,2]
[32493,1714331441815,-502.8355586,0.00010958,2]
[32494,1714331441824,-500.0,0.00010958,2]
[32495,1714331441833,-700.29,0.00010958,2]
[32497,1714331441854,-500.0,0.00010958,2]
[32498,1714331441863,-614.15,0.00010958,2]
[32499,1714331441872,-500.0,0.00010958,2]
[32500,1714331441882,-544.68,0.00010958,2]
[32501,1714331441892,-500.0,0.00010958,2]
[32502,1714331441902,-500.0,0.00010958,2]
[32503,1714331441912,-500.0,0.00010958,2]
[32504,1714331441921,-500.0,0.00010958,2]
[32505,1714331441930,-500.0,0.00010958,2]
[32507,1714331441950,-500.0,0.00010958,2]
[32509,1714331441971,-500.0,0.00010958,2]
[32511,1714331441990,-507.42691928,0.00010958,2]
[32513,1714331442010,-150.0,0.00010958,2]
[32515,1714331442029,-500.0,0.00010958,2]
[32517,1714331442048,-500.0,0.00010958,2]
[32519,1714331442066,-500.0,0.00010958,2]
[32521,1714331442088,-577.99290916,0.00010958,2]
[32523,1714331442106,-500.0,0.00010958,2]
[32525,1714331442126,-500.0,0.00010958,2]
[32527,1714331442145,-500.0,0.00010958,2]
[32529,1714331442164,-500.0,0.00010958,2]
[32531,1714331442183,-500.0,0.00010958,2]
[32533,1714331442202,-500.0,0.00010958,2]
[32535,1714331442220,-500.0,0.00010958,2]
[32537,1714331442239,-504.08046271,0.00010958,2]
[32539,1714331442258,-1100.46,0.00010958,2]
[32541,1714331442276,-503.17672513,0.00010958,2]
[32543,1714331442295,-500.0,0.00010958,2]
[32545,1714331442315,-500.0,0.00010958,2]
[32547,1714331442341,-500.0,0.00010958,2]
[32549,1714331442360,-510.54,0.00010958,2]
[32551,1714331442381,-500.0,0.00010958,2]
[32553,1714331442400,-500.0,0.00010958,2]
[32554,1714331442410,-500.0,0.00010958,2]
[32555,1714331442420,-500.0,0.00010958,2]
[32557,1714331442518,-1416.07,0.00010958,2]
[32559,1714331442537,-801.75,0.00010958,2]
[32561,1714331442556,-500.0,0.00010958,2]
[32563,1714331442574,-906.44,0.00010958,2]
[32565,1714331442593,-500.0,0.00010958,2]
[32567,1714331442611,-500.0,0.00010958,2]
[32569,1714331442630,-500.0,0.00010958,2]
[32570,1714331442638,-500.0,0.00010958,2]
[32571,1714331442647,-500.0,0.00010958,2]
[32573,1714331442666,-500.0,0.00010958,2]
[32575,1714331442684,-502.57199475,0.00010958,2]
[32576,1714331442693,-500.0,0.00010958,2]
[32577,1714331442702,-500.0,0.00010958,2]
[32579,1714331442720,-500.0,0.00010958,2]
[32581,1714331442738,-500.0,0.00010958,2]
[32583,1714331442756,-500.0,0.00010958,2]
[32584,1714331442765,-500.0,0.00010958,2]
[32585,1714331442774,-500.0,0.00010958,2]
[32587,1714331442792,-500.0,0.00010958,2]
[32589,1714331442811,-500.0,0.00010958,2]
[32591,1714331442829,-913.43,0.00010958,2]
[32593,1714331442848,-540.89,0.00010958,2]
[32594,1714331442857,-500.0,0.00010958,2]
[32595,1714331442866,-500.0,0.00010958,2]
[32597,1714331442885,-500.0,0.00010958,2]
[32598,1714331442895,-500.0,0.00010958,2]
[32599,1714331442904,-500.0,0.00010958,2]
[32601,1714331442922,-500.0,0.00010958,2]
[32603,1714331442942,-577.63,0.00010958,2]
[32605,1714331442960,-500.0,0.00010958,2]
[32607,1714331442978,-500.0,0.00010958,2]
[32609,1714331442999,-500.0,0.00010958,2]
[32611,1714331443017,-500.0,0.00010958,2]
[32613,1714331443036,-513.89036949,0.00010958,2]
[32615,1714331443054,-500.0,0.00010958,2]
[32617,1714331443072,-500.0,0.00010958,2]
[32618,1714331443082,-500.0,0.00010958,2]
[32619,1714331443091,-500.0,0.00010958,2]
[32620,1714331443100,-500.0,0.00010958,2]
[32621,1714331443109,-500.0,0.00010958,2]
[32622,1714331443118,-500.0,0.00010958,2]
[32623,1714331443127,-500.0,0.00010958,2]
[32625,1714331443145,-500.0,0.00010958,2]
[32627,1714331443163,-500.0,0.00010958,2]
[32629,1714331443181,-996.75,0.00010958,2]
[32631,1714331443201,-500.0,0.00010958,2]
[32633,1714331443219,-500.0,0.00010958,2]
[32635,1714331443238,-500.0,0.00010958,2]
[32637,1714331443256,-500.0,0.00010958,2]
[32639,1714331443275,-500.0,0.00010958,2]
[32641,1714331443292,-500.0,0.00010958,2]
[32643,1714331443310,-500.0,0.00010958,2]
[32645,1714331443328,-538.0,0.00010958,2]
[32647,1714331443350,-781.66,0.00010958,2]
[32668,1714331443453,-500.0,0.00010958,2]
[32672,1714331443472,-383.63,0.00010958,2]
[32689,1714331443554,-500.0,0.00010958,2]
[32690,1714331443563,-531.88,0.00010958,2]
[32691,1714331443572,-500.0,0.00010958,2]
[32693,1714331443590,-1007.48,0.00010958,2]
[32695,1714331443608,-1772.83,0.00010958,2]
[32697,1714331443626,-504.45042747,0.00010958,2]
[32699,1714331443635,-532.51,0.00010958,2]
[32701,1714331443645,-500.0,0.00010958,2]
[32703,1714331443654,-2921.48,0.00010958,2]
[32705,1714331443672,-986.84,0.00010958,2]
[32707,1714331443690,-500.0,0.00010958,2]
[32709,1714331443708,-500.0,0.00010958,2]
[32711,1714331443727,-625.85,0.00010958,2]
[32713,1714331443745,-500.0,0.00010958,2]
[32715,1714331443765,-500.0,0.00010958,2]
[32717,1714331443783,-805.9,0.00010958,2]
[32719,1714331443800,-500.0,0.00010958,2]
[32721,1714331443819,-500.0,0.00010958,2]
[32722,1714331443828,-502.8215391,0.00010958,2]
[32723,1714331443837,-500.0,0.00010958,2]
[32724,1714331443846,-500.0,0.00010958,2]
[32725,1714331443855,-500.0,0.00010958,2]
[32726,1714331443864,-500.0,0.00010958,2]
[32727,1714331443873,-500.0,0.00010958,2]
[32728,1714331443883,-500.0,0.00010958,2]
[32729,1714331443891,-500.0,0.00010958,2]
[32731,1714331443911,-500.0,0.00010958,2]
[32733,1714331443929,-500.0,0.00010958,2]
[32735,1714331443947,-5265.48,0.00010958,2]
[32737,1714331443965,-500.0,0.00010958,2]
[32739,1714331443984,-500.0,0.00010958,2]
[32740,1714331443993,-500.0,0.00010958,2]
[32741,1714331444002,-500.0,0.00010958,2]
[32742,1714331444011,-1492.28,0.00010958,2]
[32743,1714331444020,-772.53,0.00010958,2]
[32745,1714331444038,-622.52,0.00010958,2]
[32747,1714331444056,-500.0,0.00010958,2]
[32749,1714331444074,-500.0,0.00010958,2]
[32751,1714331444092,-500.0,0.00010958,2]
[32753,1714331444110,-500.0,0.00010958,2]
[32755,1714331444129,-2683.52,0.00010958,2]
[32757,1714331444147,-500.0,0.00010958,2]
[32759,1714331444165,-500.0,0.00010958,2]
[32761,1714331444183,-500.0,0.00010958,2]
[32763,1714331444201,-500.0,0.00010958,2]
[32765,1714331444219,-500.0,0.00010958,2]
[32767,1714331444238,-503.22963868,0.00010958,2]
[32769,1714331444257,-500.0,0.00010958,2]
[32771,1714331444275,-753.04,0.00010958,2]
[32773,1714331444294,-500.0,0.00010958,2]
[32775,1714331444313,-500.0,0.00010958,2]
[32777,1714331444332,-500.0,0.00010958,2]
[32779,1714331444353,-500.0,0.00010958,2]
[32781,1714331444371,-500.0,0.00010958,2]
[32783,1714331444391,-487.83023256,0.00010958,2]
[32785,1714331444410,-1439.12,0.00010958,2]
[32787,1714331444432,-500.0,0.00010958,2]
[32789,1714331444450,-560.22,0.00010958,2]
[32791,1714331444469,-500.0,0.00010958,2]
[32793,1714331444488,-500.0,0.00010958,2]
[32795,1714331444507,-2375.71,0.00010958,2]
[32797,1714331444525,-500.0,0.00010958,2]
[32799,1714331444543,-500.0,0.00010958,2]
[32801,1714331444562,-768.05,0.00010958,2]
[32803,1714331444579,-500.0,0.00010958,2]
[32805,1714331444597,-500.0,0.00010958,2]
[32807,1714331444615,-500.0,0.00010958,2]
[32809,1714331444633,-1119.03,0.00010958,2]
[32811,1714331444652,-500.0,0.00010958,2]
[32813,1714331444672,-500.0,0.00010958,2]
[32815,1714331444690,-500.0,0.00010958,2]
[32817,1714331444709,-506.07100713,0.00010958,2]
[32819,1714331444727,-555.53,0.00010958,2]
[32821,1714331444747,-500.0,0.00010958,2]
[32822,1714331444757,-1369.84,0.00010958,2]
[32823,1714331444767,-500.0,0.00010958,2]
[32824,1714331444776,-500.0,0.00010958,2]
[32825,1714331444785,-500.0,0.00010958,2]
[32826,1714331444794,-502.76718762,0.00010958,2]
[32827,1714331444804,-500.0,0.00010958,2]
[32828,1714331444813,-1950.72,0.00010958,2]
[32829,1714331444823,-500.0,0.00010958,2]
[32831,1714331444844,-2951.91,0.00010958,2]
[32833,1714331444863,-502.86,0.00010958,2]
[32835,1714331444882,-500.0,0.00010958,2]
[32837,1714331444901,-8529.27,0.00010958,2]
[32839,1714331444919,-1806.02,0.00010958,2]
[32841,1714331444937,-500.0,0.00010958,2]
[32843,1714331444958,-500.0,0.00010958,2]
[32845,1714331444977,-500.0,0.00010958,2]
[32847,1714331444996,-500.0,0.00010958,2]
[32849,1714331445014,-16629.27,0.00010958,2]
[32851,1714331445033,-500.0,0.00010958,2]
[32853,1714331445052,-500.0,0.00010958,2]
[32855,1714331445071,-500.0,0.00010958,2]
[32857,1714331445090,-500.0,0.00010958,2]
[32859,1714331445108,-500.0,0.00010958,2]
[32861,1714331445128,-925.51,0.00010958,2]
[32863,1714331445147,-850.01,0.00010958,2]
[32865,1714331445166,-500.0,0.00010958,2]
[32867,1714331445184,-500.0,0.00010958,2]
[32869,1714331445204,-500.0,0.00010958,2]
[32871,1714331445223,-500.0,0.00010958,2]
[32873,1714331445242,-502.35759997,0.00010958,2]
[32875,1714331445260,-823.49,0.00010958,2]
[32877,1714331445278,-500.0,0.00010958,2]
[32879,1714331445298,-500.0,0.00010958,2]
[32881,1714331445316,-500.0,0.00010958,2]
[32883,1714331445338,-1145.96,0.00010958,2]
[32885,1714331445363,-500.0,0.00010958,2]
[32887,1714331445385,-500.0,0.00010958,2]
[32889,1714331445404,-500.0,0.00010958,2]
[32891,1714331445426,-500.0,0.00010958,2]
[32893,1714331445450,-500.0,0.00010958,2]
[32895,1714331445470,-500.0,0.00010958,2]
[32897,1714331445491,-500.0,0.00010958,2]
[32899,1714331445515,-500.0,0.00010958,2]
[32901,1714331445533,-500.0,0.00010958,2]
[32903,1714331445552,-1251.88,0.00010958,2]
[32904,1714331445561,-1301.64,0.00010958,2]
[32905,1714331445570,-982.93,0.00010958,2]
[32906,1714331445579,-500.0,0.00010958,2]
[32907,1714331445588,-500.0,0.00010958,2]
[32909,1714331445606,-558.43,0.00010958,2]
[32911,1714331445625,-559.47,0.00010958,2]
[32913,1714331445644,-500.0,0.00010958,2]
[32915,1714331445664,-3164.21,0.00010958,2]
[32917,1714331445686,-500.0,0.00010958,2]
[32919,1714331445707,-760.17,0.00010958,2]
[32921,1714331445726,-500.0,0.00010958,2]
[32922,1714331445736,-812.36,0.00010958,2]
[32923,1714331445745,-377.24990159,0.00010958,2]
[32924,1714331445756,-2951.22,0.00010958,2]
[32925,1714331445767,-1754.95,0.00010958,2]
[32926,1714331445778,-500.0,0.00010958,2]
[32927,1714331445787,-586.66,0.00010958,2]
[32928,1714331445798,-856.74,0.00010958,2]
[32929,1714331445808,-1319.84,0.00010958,2]
[32931,1714331445828,-500.0,0.00010958,2]
[32933,1714331445847,-500.0,0.00010958,2]
[32935,1714331445866,-500.0,0.00010958,2]
[32937,1714331445885,-506.42,0.00010958,2]
[32939,1714331445904,-500.0,0.00010958,2]
[32941,1714331445923,-500.0,0.00010958,2]
[32943,1714331445942,-774.93,0.00010958,2]
[32945,1714331445960,-500.0,0.00010958,2]
[32947,1714331445978,-500.0,0.00010958,2]
[32949,1714331445997,-500.0,0.00010958,2]
[32951,1714331446015,-500.0,0.00010958,2]
[32953,1714331446033,-956.53,0.00010958,2]
[32955,1714331446051,-500.0,0.00010958,2]
[32957,1714331446068,-903.91,0.00010958,2]
[32959,1714331446087,-694.2,0.00010958,2]
[32961,1714331446105,-500.0,0.00010958,2]
[32963,1714331446124,-500.0,0.00010958,2]
[32965,1714331446143,-1112.97,0.00010958,2]
[32967,1714331446161,-500.0,0.00010958,2]
[32969,1714331446179,-500.0,0.00010958,2]
[32971,1714331446198,-1711.83,0.00010958,2]
[32973,1714331446215,-500.0,0.00010958,2]
[32975,1714331446233,-207.73230545,0.00010958,2]
[32977,1714331446251,-600.34,0.00010958,2]
[32979,1714331446269,-1062.05,0.00010958,2]
[32981,1714331446286,-501.62557223,0.00010958,2]
[32985,1714331446305,-500.0,0.00010958,2]
[32989,1714331446324,-500.0,0.00010958,2]
[32991,1714331446337,-500.0,0.00010958,2]
[32993,1714331446356,-829.71,0.00010958,2]
[32995,1714331446375,-579.0,0.00010958,2]
[32997,1714331446393,-500.0,0.00010958,2]
[32999,1714331446412,-531.05,0.00010958,2]
[33001,1714331446435,-500.0,0.00010958,2]
[33003,1714331446453,-509.12,0.00010958,2]
[33005,1714331446471,-2169.37,0.00010958,2]
[33007,1714331446491,-500.0,0.00010958,2]
[33009,1714331446622,-2292.13,0.00010958,2]
[33011,1714331446641,-500.0,0.00010958,2]
[33013,1714331446650,-894.45,0.00010958,2]
[33015,1714331446659,-484.52683538,0.00010958,2]
[33017,1714331446669,-500.0,0.00010958,2]
[33019,1714331446678,-11916.14,0.00010958,2]
[33021,1714331446688,-774.47,0.00010958,2]
[33023,1714331446707,-4212.02,0.00010958,2]
[33025,1714331446725,-500.0,0.00010958,2]
[33027,1714331446743,-503.82425462,0.00010958,2]
[33029,1714331446761,-1126.83,0.00010958,2]
[33031,1714331446780,-503.43215572,0.00010958,2]
[33033,1714331446798,-500.0,0.00010958,2]
[33035,1714331446816,-500.0,0.00010958,2]
[33037,1714331446835,-672.42,0.00010958,2]
[33039,1714331446854,-500.0,0.00010958,2]
[33041,1714331446872,-1138.49,0.00010958,2]
[33043,1714331446882,-500.0,0.00010958,2]
[33045,1714331446891,-500.0,0.00010958,2]
[33047,1714331446909,-500.0,0.00010958,2]
[33049,1714331446928,-500.0,0.00010958,2]
[33051,1714331446948,-860.55,0.00010958,2]
[33053,1714331446966,-500.0,0.00010958,2]
[33055,1714331446986,-1049.2,0.00010958,2]
[33057,1714331447006,-500.0,0.00010958,2]
[33059,1714331447025,-500.0,0.00010958,2]
[33061,1714331447043,-500.0,0.00010958,2]
[33063,1714331447062,-723.16,0.00010958,2]
[33065,1714331447080,-500.0,0.00010958,2]
[33067,1714331447099,-500.0,0.00010958,2]
[33069,1714331447118,-16083.09,0.00010958,2]
[33071,1714331447136,-272.77090353,0.00010958,2]
[33073,1714331447721,-500.0,0.00010958,2]